[Event "*** Titled Tuesday Blitz"]
[Site "Chess.com"]
[Date "2020.04.28"]
[Round "3"]
[White "SirStrateg"]
[Black "agrigo3"]
[Result "1-0"]
[WhiteElo "2592"]
[BlackElo "2312"]
[TimeControl "180+1"]
[EndTime "10:27:54 PDT"]
[Termination "SirStrateg won on time"]

1. d4 {[%clk 0:03:00.7]} 1... d6 {[%clk 0:02:59.5]} 2. c3 {[%clk 0:02:57.9]}
2... e5 {[%clk 0:02:56.9]} 3. dxe5 {[%clk 0:02:53.5]} 3... dxe5 {[%clk
0:02:56.3]} 4. Qxd8+ {[%clk 0:02:54.1]} 4... Kxd8 {[%clk 0:02:56.6]} 5. e4
{[%clk 0:02:53.2]} 5... Be6 {[%clk 0:02:55.2]} 6. Nf3 {[%clk 0:02:52.3]} 6... f6
{[%clk 0:02:55.4]} 7. Nbd2 {[%clk 0:02:50.7]} 7... Nd7 {[%clk 0:02:45.9]} 8. Bc4
{[%clk 0:02:50.7]} 8... Bxc4 {[%clk 0:02:37.8]} 9. Nxc4 {[%clk 0:02:50.6]} 9...
a5 {[%clk 0:02:16.2]} 10. Be3 {[%clk 0:02:45.1]} 10... Bc5 {[%clk 0:02:16]} 11.
O-O-O {[%clk 0:02:41.1]} 11... Bxe3+ {[%clk 0:02:14.8]} 12. Nxe3 {[%clk
0:02:40.5]} 12... Ne7 {[%clk 0:02:08.6]} 13. Nd2 {[%clk 0:02:40.7]} 13... c6
{[%clk 0:02:01.1]} 14. Ndc4 {[%clk 0:02:40.5]} 14... Kc7 {[%clk 0:02:01.6]} 15.
f3 {[%clk 0:02:36.1]} 15... b5 {[%clk 0:01:48.4]} 16. Nd6 {[%clk 0:02:36.1]}
16... Nc5 {[%clk 0:01:46.9]} 17. Rd2 {[%clk 0:02:22.7]} 17... Rad8 {[%clk
0:01:31.3]} 18. Rhd1 {[%clk 0:02:21.4]} 18... Nc8 {[%clk 0:01:11.2]} 19. Nef5
{[%clk 0:02:09.9]} 19... Nxd6 {[%clk 0:01:07]} 20. Nxd6 {[%clk 0:02:09.7]} 20...
a4 {[%clk 0:00:42.9]} 21. Kc2 {[%clk 0:02:06.1]} 21... Rd7 {[%clk 0:00:37.4]}
22. c4 {[%clk 0:01:52.7]} 22... b4 {[%clk 0:00:33.8]} 23. a3 {[%clk 0:01:41.2]}
23... b3+ {[%clk 0:00:26.1]} 24. Kc3 {[%clk 0:01:41.2]} 24... Rhd8 {[%clk
0:00:17.3]} 25. Nf5 {[%clk 0:01:41.4]} 25... Rxd2 {[%clk 0:00:14.7]} 26. Rxd2
{[%clk 0:01:41.8]} 26... Rxd2 {[%clk 0:00:14.5]} 27. Kxd2 {[%clk 0:01:42.3]}
27... Ne6 {[%clk 0:00:11.9]} 28. Kc3 {[%clk 0:01:42.8]} 28... Kb6 {[%clk
0:00:12.1]} 29. Kb4 {[%clk 0:01:42.9]} 29... g6 {[%clk 0:00:08.4]} 30. Ne3
{[%clk 0:01:39.2]} 30... Nc5 {[%clk 0:00:05.4]} 31. Nd1 {[%clk 0:01:38.7]} 31...
Nd3+ {[%clk 0:00:02.1]} 32. Kxa4 {[%clk 0:01:37.7]} 32... Ne1 {[%clk 0:00:02]}
33. Ne3 {[%clk 0:01:34.1]} 1-0

[Event "*** Titled Tuesday Blitz"]
[Site "Chess.com"]
[Date "2020.04.28"]
[Round "3"]
[White "JustWatch000"]
[Black "MikaelyanArman"]
[Result "0-1"]
[WhiteElo "2439"]
[BlackElo "2755"]
[TimeControl "180+1"]
[EndTime "10:27:56 PDT"]
[Termination "MikaelyanArman won by resignation"]

1. Nf3 {[%clk 0:03:00.9]} 1... Nf6 {[%clk 0:02:59.4]} 2. g3 {[%clk 0:03:01.5]}
2... d5 {[%clk 0:02:58.9]} 3. Bg2 {[%clk 0:03:02.4]} 3... c6 {[%clk 0:02:59.4]}
4. O-O {[%clk 0:03:03.1]} 4... Bg4 {[%clk 0:02:56.2]} 5. d3 {[%clk 0:03:04]}
5... Nbd7 {[%clk 0:02:54.5]} 6. Nbd2 {[%clk 0:03:04]} 6... e5 {[%clk 0:02:49.7]}
7. e4 {[%clk 0:03:04.6]} 7... Bd6 {[%clk 0:02:35.4]} 8. c3 {[%clk 0:03:04.3]}
8... O-O {[%clk 0:02:34.9]} 9. Qc2 {[%clk 0:03:03.3]} 9... Re8 {[%clk 0:02:35]}
10. h3 {[%clk 0:03:01.7]} 10... Bh5 {[%clk 0:02:34.1]} 11. Nh4 {[%clk
0:03:01.5]} 11... Bg6 {[%clk 0:02:33.6]} 12. Re1 {[%clk 0:02:59.6]} 12... Qc7
{[%clk 0:02:30]} 13. Nxg6 {[%clk 0:02:59.1]} 13... hxg6 {[%clk 0:02:29.7]} 14.
b3 {[%clk 0:02:59.3]} 14... Nf8 {[%clk 0:02:24.3]} 15. Bb2 {[%clk 0:02:59.1]}
15... Rad8 {[%clk 0:02:23.1]} 16. c4 {[%clk 0:02:56.5]} 16... d4 {[%clk
0:02:20.5]} 17. c5 {[%clk 0:02:56.3]} 17... Be7 {[%clk 0:02:19.9]} 18. b4 {[%clk
0:02:57]} 18... g5 {[%clk 0:02:15.5]} 19. a3 {[%clk 0:02:56.4]} 19... Ng6 {[%clk
0:02:15.6]} 20. Nc4 {[%clk 0:02:55.9]} 20... Nd7 {[%clk 0:02:10.9]} 21. a4
{[%clk 0:02:55.1]} 21... Ngf8 {[%clk 0:01:40.6]} 22. Ba3 {[%clk 0:02:53.6]}
22... Ne6 {[%clk 0:01:40.4]} 23. Rac1 {[%clk 0:02:52.2]} 23... g6 {[%clk
0:01:35.9]} 24. Bf3 {[%clk 0:02:52.1]} 24... Kg7 {[%clk 0:01:35.2]} 25. Bg4
{[%clk 0:02:51]} 25... Ndf8 {[%clk 0:01:18.5]} 26. Kg2 {[%clk 0:02:50.7]} 26...
Kh7 {[%clk 0:01:10.4]} 27. Na5 {[%clk 0:02:49.5]} 27... Ng7 {[%clk 0:01:09.1]}
28. Nb3 {[%clk 0:02:49.2]} 28... f5 {[%clk 0:01:07.5]} 29. Bf3 {[%clk
0:02:48.8]} 29... Bf6 {[%clk 0:01:05.6]} 30. b5 {[%clk 0:02:48.2]} 30... Qf7
{[%clk 0:00:59.9]} 31. bxc6 {[%clk 0:02:47.1]} 31... bxc6 {[%clk 0:01:00.8]} 32.
Na5 {[%clk 0:02:47]} 32... Rc8 {[%clk 0:01:00.2]} 33. Nc4 {[%clk 0:02:45.3]}
33... Nfe6 {[%clk 0:00:40.4]} 34. Nd6 {[%clk 0:02:44.3]} 34... Qf8 {[%clk
0:00:40.8]} 35. Nxe8 {[%clk 0:02:43.8]} 35... Rxe8 {[%clk 0:00:40.1]} 36. exf5
{[%clk 0:02:43.1]} 36... gxf5 {[%clk 0:00:39.1]} 37. Bxc6 {[%clk 0:02:42.9]}
37... Rd8 {[%clk 0:00:34.1]} 38. Qb3 {[%clk 0:02:40.2]} 38... e4 {[%clk
0:00:23]} 39. dxe4 {[%clk 0:02:39.5]} 39... f4 {[%clk 0:00:23.5]} 40. e5 {[%clk
0:02:38.9]} 40... Be7 {[%clk 0:00:22.7]} 41. Be4+ {[%clk 0:02:39]} 41... Kh6
{[%clk 0:00:22.8]} 42. Qd3 {[%clk 0:02:31.3]} 42... Nh5 {[%clk 0:00:18.9]} 43.
Bh7 {[%clk 0:02:27.3]} 43... Qg7 {[%clk 0:00:13.9]} 44. Bf5 {[%clk 0:02:25.6]}
44... fxg3 {[%clk 0:00:12.8]} 45. Qa6 {[%clk 0:02:18.5]} 45... Nf4+ {[%clk
0:00:12]} 46. Kxg3 {[%clk 0:02:18.6]} 46... Qf7 {[%clk 0:00:10.1]} 47. Bg4
{[%clk 0:02:17.6]} 47... Rf8 {[%clk 0:00:06.3]} 48. c6 {[%clk 0:02:17.2]} 48...
Nh5+ {[%clk 0:00:06.1]} 49. Kh2 {[%clk 0:02:13.4]} 49... Qxf2+ {[%clk 0:00:06]}
0-1

[Event "*** Titled Tuesday Blitz"]
[Site "Chess.com"]
[Date "2020.04.28"]
[Round "3"]
[White "Charlottemillard17"]
[Black "FMOlexandrProhorov"]
[Result "1-0"]
[WhiteElo "1409"]
[BlackElo "2069"]
[TimeControl "180+1"]
[EndTime "10:27:56 PDT"]
[Termination "Charlottemillard17 won on time"]

1. e4 {[%clk 0:03:00.9]} 1... c5 {[%clk 0:00:20.5]} 2. c3 {[%clk 0:02:51.7]}
2... e5 {[%clk 0:00:19.9]} 3. d4 {[%clk 0:02:48.9]} 3... exd4 {[%clk 0:00:18]}
4. cxd4 {[%clk 0:02:49.4]} 4... cxd4 {[%clk 0:00:18.5]} 5. Qxd4 {[%clk
0:02:49.4]} 5... Nf6 {[%clk 0:00:19]} 6. Nc3 {[%clk 0:02:49]} 6... Nc6 {[%clk
0:00:19.2]} 7. Qd1 {[%clk 0:02:46.1]} 7... Bb4 {[%clk 0:00:19.8]} 8. e5 {[%clk
0:02:27.2]} 8... Ne4 {[%clk 0:00:18.9]} 9. Bd2 {[%clk 0:02:16.8]} 9... Nxd2
{[%clk 0:00:18.2]} 10. Qxd2 {[%clk 0:02:16.3]} 10... Nxe5 {[%clk 0:00:18.2]} 11.
a3 {[%clk 0:02:12.2]} 11... Bxc3 {[%clk 0:00:16.2]} 12. Qxc3 {[%clk 0:02:11.9]}
12... Qe7 {[%clk 0:00:16.9]} 13. Be2 {[%clk 0:02:10.1]} 13... O-O {[%clk
0:00:16.7]} 14. Rc1 {[%clk 0:02:02.7]} 14... d6 {[%clk 0:00:16.4]} 15. Nh3
{[%clk 0:01:58.9]} 15... Bf5 {[%clk 0:00:16.2]} 16. Nf4 {[%clk 0:01:55.7]} 16...
g5 {[%clk 0:00:15.2]} 17. Nd5 {[%clk 0:01:50.4]} 17... Qe6 {[%clk 0:00:15.2]}
18. Nc7 {[%clk 0:01:45.6]} 18... Qe7 {[%clk 0:00:13.7]} 19. Nd5 {[%clk
0:01:44.3]} 19... Qe6 {[%clk 0:00:12.9]} 20. Ne3 {[%clk 0:01:43.9]} 20... Bg6
{[%clk 0:00:11.8]} 21. O-O {[%clk 0:01:41.7]} 21... Rac8 {[%clk 0:00:11.5]} 22.
Qb4 {[%clk 0:01:36.5]} 22... b6 {[%clk 0:00:10.9]} 23. Bg4 {[%clk 0:01:31.3]}
23... f5 {[%clk 0:00:10.2]} 24. Bf3 {[%clk 0:01:29]} 24... Kg7 {[%clk
0:00:09.3]} 25. Bd5 {[%clk 0:01:27.9]} 25... Qd7 {[%clk 0:00:07.4]} 26. f4
{[%clk 0:01:22.1]} 26... Ng4 {[%clk 0:00:04.3]} 27. Qd4+ {[%clk 0:01:20.8]} 1-0

[Event "*** Titled Tuesday Blitz"]
[Site "Chess.com"]
[Date "2020.04.28"]
[Round "3"]
[White "zajka-molotok"]
[Black "Stewie_89"]
[Result "0-1"]
[WhiteElo "2403"]
[BlackElo "2631"]
[TimeControl "180+1"]
[EndTime "10:27:58 PDT"]
[Termination "Stewie_89 won by resignation"]

1. d4 {[%clk 0:02:43.3]} 1... d5 {[%clk 0:02:58.4]} 2. c4 {[%clk 0:02:42.7]}
2... dxc4 {[%clk 0:02:57]} 3. e3 {[%clk 0:02:36.4]} 3... e5 {[%clk 0:02:54.9]}
4. dxe5 {[%clk 0:02:34.7]} 4... Qxd1+ {[%clk 0:02:53.9]} 5. Kxd1 {[%clk
0:02:34.9]} 5... Nc6 {[%clk 0:02:53.9]} 6. Nf3 {[%clk 0:02:32.1]} 6... Bg4
{[%clk 0:02:52.1]} 7. Bxc4 {[%clk 0:02:26.8]} 7... Nxe5 {[%clk 0:02:33.7]} 8.
Bb5+ {[%clk 0:02:18.4]} 8... c6 {[%clk 0:02:30.9]} 9. Be2 {[%clk 0:02:17.7]}
9... O-O-O+ {[%clk 0:02:22.9]} 10. Nbd2 {[%clk 0:02:15.4]} 10... Bxf3 {[%clk
0:02:18.6]} 11. gxf3 {[%clk 0:02:11.1]} 11... Nf6 {[%clk 0:02:17.3]} 12. f4
{[%clk 0:02:04.2]} 12... Ned7 {[%clk 0:02:04.1]} 13. Kc2 {[%clk 0:01:58.6]}
13... Nc5 {[%clk 0:01:51.8]} 14. b3 {[%clk 0:01:52.2]} 14... Nce4 {[%clk
0:01:40.4]} 15. Nxe4 {[%clk 0:01:50.2]} 15... Nxe4 {[%clk 0:01:40]} 16. f3
{[%clk 0:01:43.5]} 16... Nf6 {[%clk 0:01:32]} 17. Bb2 {[%clk 0:01:42]} 17... Bc5
{[%clk 0:01:32]} 18. e4 {[%clk 0:01:25.5]} 18... Be3 {[%clk 0:01:29.1]} 19. f5
{[%clk 0:01:24.1]} 19... Rd2+ {[%clk 0:01:26.8]} 20. Kc3 {[%clk 0:01:06.1]}
20... Rxe2 {[%clk 0:01:26.4]} 21. Rad1 {[%clk 0:00:59.7]} 21... Bb6 {[%clk
0:01:19.7]} 22. a4 {[%clk 0:00:51]} 22... Ba5+ {[%clk 0:01:12.3]} 23. b4 {[%clk
0:00:51.1]} 23... Bxb4+ {[%clk 0:01:12.2]} 24. Kxb4 {[%clk 0:00:51.8]} 24...
Rxb2+ {[%clk 0:01:12.1]} 25. Kc3 {[%clk 0:00:52.3]} 25... Rf2 {[%clk 0:01:11.1]}
26. Rd3 {[%clk 0:00:52.3]} 26... Rd8 {[%clk 0:01:09.6]} 27. Rhd1 {[%clk
0:00:52.4]} 27... Rxf3 {[%clk 0:00:54.1]} 28. Rxf3 {[%clk 0:00:51.7]} 28... Rxd1
{[%clk 0:00:53.8]} 29. e5 {[%clk 0:00:52]} 29... Nd5+ {[%clk 0:00:52.5]} 30. Kc2
{[%clk 0:00:51.3]} 30... Re1 {[%clk 0:00:50.9]} 31. f6 {[%clk 0:00:48.5]} 31...
g6 {[%clk 0:00:46.1]} 32. Rh3 {[%clk 0:00:46.6]} 32... h5 {[%clk 0:00:45.6]} 0-1

[Event "*** Titled Tuesday Blitz"]
[Site "Chess.com"]
[Date "2020.04.28"]
[Round "3"]
[White "dmosesov"]
[Black "dcann0n88"]
[Result "0-1"]
[WhiteElo "2562"]
[BlackElo "2393"]
[TimeControl "180+1"]
[EndTime "10:27:59 PDT"]
[Termination "dcann0n88 won on time"]

1. d4 {[%clk 0:03:00.9]} 1... Nf6 {[%clk 0:02:59.9]} 2. c4 {[%clk 0:03:01]} 2...
g6 {[%clk 0:02:58.3]} 3. Nc3 {[%clk 0:03:00.9]} 3... Bg7 {[%clk 0:02:58.9]} 4.
e4 {[%clk 0:03:00.8]} 4... d6 {[%clk 0:02:59.5]} 5. h3 {[%clk 0:03:01.5]} 5...
O-O {[%clk 0:02:59.4]} 6. Be3 {[%clk 0:03:02.2]} 6... e5 {[%clk 0:02:57]} 7. d5
{[%clk 0:03:02.4]} 7... Nh5 {[%clk 0:02:52.2]} 8. Be2 {[%clk 0:03:01.7]} 8...
Nf4 {[%clk 0:02:51.9]} 9. Bf3 {[%clk 0:03:01.5]} 9... f5 {[%clk 0:02:28.6]} 10.
g3 {[%clk 0:03:01.3]} 10... Nh5 {[%clk 0:02:28.6]} 11. exf5 {[%clk 0:02:53.2]}
11... Rxf5 {[%clk 0:02:21.3]} 12. g4 {[%clk 0:02:52.2]} 12... Rxf3 {[%clk
0:02:20.2]} 13. Nxf3 {[%clk 0:02:53.1]} 13... Nf4 {[%clk 0:02:17.1]} 14. Bxf4
{[%clk 0:02:29.3]} 14... exf4 {[%clk 0:02:15.5]} 15. Qd2 {[%clk 0:02:30]} 15...
Na6 {[%clk 0:02:07.3]} 16. O-O-O {[%clk 0:02:27.2]} 16... Nc5 {[%clk 0:01:44.4]}
17. Rde1 {[%clk 0:02:24.5]} 17... a5 {[%clk 0:01:39]} 18. Ne4 {[%clk 0:02:09.5]}
18... Na4 {[%clk 0:01:36]} 19. Nd4 {[%clk 0:02:03.6]} 19... c5 {[%clk
0:01:20.7]} 20. dxc6 {[%clk 0:02:02]} 20... Qb6 {[%clk 0:01:17.1]} 21. Nxd6
{[%clk 0:01:24.5]} 21... Bxd4 {[%clk 0:01:03.7]} 22. Re8+ {[%clk 0:01:24]} 22...
Kg7 {[%clk 0:01:03.4]} 0-1

[Event "*** Titled Tuesday Blitz"]
[Site "Chess.com"]
[Date "2020.04.28"]
[Round "3"]
[White "Oleksandr_Bortnyk"]
[Black "uchenic"]
[Result "1-0"]
[WhiteElo "2999"]
[BlackElo "2467"]
[TimeControl "180+1"]
[EndTime "10:28:00 PDT"]
[Termination "Oleksandr_Bortnyk won by resignation"]

1. e4 {[%clk 0:02:52.3]} 1... e6 {[%clk 0:03:00.2]} 2. d4 {[%clk 0:02:48.8]}
2... d5 {[%clk 0:03:00.3]} 3. Nc3 {[%clk 0:02:49.7]} 3... Bb4 {[%clk 0:02:59.7]}
4. Ne2 {[%clk 0:02:47.2]} 4... Nf6 {[%clk 0:02:57.1]} 5. e5 {[%clk 0:02:46.7]}
5... Nfd7 {[%clk 0:02:56.1]} 6. a3 {[%clk 0:02:47.1]} 6... Bf8 {[%clk
0:02:55.5]} 7. f4 {[%clk 0:02:38.9]} 7... c5 {[%clk 0:02:43.8]} 8. Be3 {[%clk
0:02:37.4]} 8... Nc6 {[%clk 0:02:42.3]} 9. g3 {[%clk 0:02:31]} 9... b6 {[%clk
0:02:38.7]} 10. Bh3 {[%clk 0:02:29]} 10... Ba6 {[%clk 0:02:36.5]} 11. f5 {[%clk
0:02:05.4]} 11... exf5 {[%clk 0:02:27.4]} 12. Nxd5 {[%clk 0:01:58.1]} 12... cxd4
{[%clk 0:02:24.5]} 13. Nxd4 {[%clk 0:01:50.7]} 13... Ndxe5 {[%clk 0:02:17.2]}
14. Nxc6 {[%clk 0:01:36.8]} 14... Nxc6 {[%clk 0:02:16]} 15. Qf3 {[%clk
0:01:33.6]} 15... g6 {[%clk 0:01:52.9]} 16. O-O-O {[%clk 0:01:23.7]} 16... Ne5
{[%clk 0:01:49.3]} 17. Nf6+ {[%clk 0:01:10.7]} 17... Ke7 {[%clk 0:01:16.1]} 18.
Qf4 {[%clk 0:00:51.3]} 18... Qb8 {[%clk 0:00:58]} 19. Qh4 {[%clk 0:00:42.8]}
19... Nf3 {[%clk 0:00:49.2]} 20. Nd5+ {[%clk 0:00:29.9]} 20... Ke8 {[%clk
0:00:49]} 21. Qf6 {[%clk 0:00:28.9]} 21... Rg8 {[%clk 0:00:43.3]} 22. Qc6+
{[%clk 0:00:26.5]} 1-0

[Event "*** Titled Tuesday Blitz"]
[Site "Chess.com"]
[Date "2020.04.28"]
[Round "3"]
[White "bancsoo"]
[Black "HansCoolNiemann"]
[Result "1-0"]
[WhiteElo "2668"]
[BlackElo "2936"]
[TimeControl "180+1"]
[EndTime "10:28:01 PDT"]
[Termination "bancsoo won by resignation"]

1. Nf3 {[%clk 0:03:00.9]} 1... d5 {[%clk 0:02:56.5]} 2. g3 {[%clk 0:03:01.3]}
2... Nc6 {[%clk 0:02:54.8]} 3. d4 {[%clk 0:03:01]} 3... Bf5 {[%clk 0:02:53.5]}
4. Bg2 {[%clk 0:03:00.7]} 4... e6 {[%clk 0:02:53.5]} 5. O-O {[%clk 0:03:00.4]}
5... Nf6 {[%clk 0:02:53.9]} 6. c4 {[%clk 0:02:59.1]} 6... dxc4 {[%clk 0:02:54]}
7. Nbd2 {[%clk 0:02:53.8]} 7... Nxd4 {[%clk 0:02:27.1]} 8. Nxc4 {[%clk
0:02:53.5]} 8... Nxf3+ {[%clk 0:02:24.7]} 9. Bxf3 {[%clk 0:02:54.4]} 9... Qxd1
{[%clk 0:02:23.3]} 10. Rxd1 {[%clk 0:02:54.5]} 10... Be4 {[%clk 0:02:20.5]} 11.
Bxe4 {[%clk 0:02:39.8]} 11... Nxe4 {[%clk 0:02:21.4]} 12. Bf4 {[%clk 0:02:40.4]}
12... Rc8 {[%clk 0:01:48.9]} 13. Rac1 {[%clk 0:02:33.3]} 13... Bc5 {[%clk
0:01:43.6]} 14. e3 {[%clk 0:01:42.6]} 14... f6 {[%clk 0:01:40.4]} 15. Na5 {[%clk
0:01:31.8]} 15... e5 {[%clk 0:01:29.8]} 16. Nxb7 {[%clk 0:01:28.3]} 16... Bb6
{[%clk 0:01:11.3]} 17. Rc4 {[%clk 0:01:26.8]} 17... Nxf2 {[%clk 0:01:03.7]} 18.
Kxf2 {[%clk 0:01:25.1]} 18... exf4 {[%clk 0:01:04]} 19. Nd6+ {[%clk 0:01:20.7]}
19... Ke7 {[%clk 0:00:53.9]} 20. Nxc8+ {[%clk 0:01:20.5]} 20... Rxc8 {[%clk
0:00:54.4]} 21. Re4+ {[%clk 0:01:21.1]} 21... Kf8 {[%clk 0:00:51.9]} 22. gxf4
{[%clk 0:01:21.6]} 22... Bc5 {[%clk 0:00:49.4]} 23. Kf3 {[%clk 0:01:13.1]} 23...
Rb8 {[%clk 0:00:46.4]} 24. b3 {[%clk 0:01:12.9]} 24... Bd6 {[%clk 0:00:38.3]}
25. Ra4 {[%clk 0:01:11.2]} 25... Rb7 {[%clk 0:00:38]} 26. Rd5 {[%clk 0:01:11.1]}
26... Ke7 {[%clk 0:00:34.4]} 27. Rda5 {[%clk 0:01:11.2]} 27... h5 {[%clk
0:00:29.3]} 28. Rxh5 {[%clk 0:01:11]} 28... c5 {[%clk 0:00:27.8]} 29. Rh8 {[%clk
0:01:08.9]} 29... Bc7 {[%clk 0:00:25.1]} 30. Re4+ {[%clk 0:01:02.8]} 30... Kf7
{[%clk 0:00:24.6]} 31. Ree8 {[%clk 0:01:01.1]} 31... Bb6 {[%clk 0:00:23.5]} 32.
f5 {[%clk 0:01:00.4]} 1-0

[Event "*** Titled Tuesday Blitz"]
[Site "Chess.com"]
[Date "2020.04.28"]
[Round "3"]
[White "Superfelix"]
[Black "GM_Levan_Pantsulaia"]
[Result "0-1"]
[WhiteElo "2455"]
[BlackElo "2810"]
[TimeControl "180+1"]
[EndTime "10:28:01 PDT"]
[Termination "GM_Levan_Pantsulaia won by resignation"]

1. e4 {[%clk 0:03:00.9]} 1... c6 {[%clk 0:02:58.7]} 2. Nc3 {[%clk 0:03:00.3]}
2... d5 {[%clk 0:02:57.2]} 3. Qe2 {[%clk 0:03:00.7]} 3... d4 {[%clk 0:02:56]} 4.
Nd1 {[%clk 0:02:56.7]} 4... e5 {[%clk 0:02:39.8]} 5. d3 {[%clk 0:02:54.3]} 5...
Bd6 {[%clk 0:02:34.9]} 6. g3 {[%clk 0:02:53.4]} 6... Nf6 {[%clk 0:02:28.7]} 7.
Bg2 {[%clk 0:02:53]} 7... h5 {[%clk 0:02:24.8]} 8. h3 {[%clk 0:02:52.8]} 8... h4
{[%clk 0:02:19.9]} 9. g4 {[%clk 0:02:51]} 9... Be6 {[%clk 0:02:19.1]} 10. Nf3
{[%clk 0:02:49.7]} 10... Nh7 {[%clk 0:02:15.1]} 11. c3 {[%clk 0:02:41.7]} 11...
c5 {[%clk 0:02:13.9]} 12. c4 {[%clk 0:02:35.5]} 12... Nc6 {[%clk 0:02:11.8]} 13.
a3 {[%clk 0:02:34.2]} 13... Nf8 {[%clk 0:02:07.4]} 14. Bg5 {[%clk 0:02:29]}
14... Be7 {[%clk 0:02:06.3]} 15. Qd2 {[%clk 0:02:20]} 15... Ng6 {[%clk
0:02:01.6]} 16. Bxe7 {[%clk 0:02:13.1]} 16... Qxe7 {[%clk 0:02:02.5]} 17. Rb1
{[%clk 0:01:57.3]} 17... Nf4 {[%clk 0:01:58.3]} 18. Bf1 {[%clk 0:01:54]} 18...
g5 {[%clk 0:01:55.5]} 19. b4 {[%clk 0:01:51.9]} 19... b6 {[%clk 0:01:47.8]} 20.
b5 {[%clk 0:01:40.6]} 20... Na5 {[%clk 0:01:47.4]} 21. Qb2 {[%clk 0:01:33.6]}
21... f6 {[%clk 0:01:43.2]} 22. Nd2 {[%clk 0:01:32.9]} 22... O-O {[%clk
0:01:37.5]} 23. Nb3 {[%clk 0:01:32.3]} 23... Nxb3 {[%clk 0:01:32.1]} 24. Qxb3
{[%clk 0:01:33.2]} 24... a6 {[%clk 0:01:32.6]} 25. a4 {[%clk 0:01:31.6]} 25...
axb5 {[%clk 0:01:30.9]} 26. axb5 {[%clk 0:01:25]} 26... Ra7 {[%clk 0:01:29.3]}
27. f3 {[%clk 0:01:12]} 27... Rfa8 {[%clk 0:01:28.9]} 28. Rh2 {[%clk 0:01:12.1]}
28... Ra3 {[%clk 0:01:23.5]} 29. Qc2 {[%clk 0:01:11.9]} 29... Kg7 {[%clk
0:01:19.1]} 30. Rd2 {[%clk 0:01:09]} 30... Qa7 {[%clk 0:01:18.7]} 31. Kf2 {[%clk
0:01:08.9]} 31... Qa5 {[%clk 0:01:17.5]} 32. Rb2 {[%clk 0:01:07.7]} 32... Ra1
{[%clk 0:01:12.2]} 33. Kg1 {[%clk 0:01:06]} 33... Qa3 {[%clk 0:01:09.6]} 34. Kh2
{[%clk 0:01:04.3]} 34... Bxc4 {[%clk 0:00:56.6]} 35. dxc4 {[%clk 0:00:56.5]}
35... Qxf3 {[%clk 0:00:53.8]} 36. Rb3 {[%clk 0:00:53.8]} 36... Qxf1 {[%clk
0:00:49.8]} 37. Rf2 {[%clk 0:00:53.6]} 0-1

[Event "*** Titled Tuesday Blitz"]
[Site "Chess.com"]
[Date "2020.04.28"]
[Round "3"]
[White "erlesfar"]
[Black "TST2014"]
[Result "1/2-1/2"]
[WhiteElo "2356"]
[BlackElo "2627"]
[TimeControl "180+1"]
[EndTime "10:28:02 PDT"]
[Termination "Game drawn by repetition"]

1. e4 {[%clk 0:03:00.9]} 1... c5 {[%clk 0:02:59.2]} 2. c3 {[%clk 0:02:59.8]}
2... Nf6 {[%clk 0:02:58.8]} 3. e5 {[%clk 0:02:59.2]} 3... Nd5 {[%clk 0:02:58.9]}
4. d4 {[%clk 0:02:59.2]} 4... cxd4 {[%clk 0:02:59]} 5. Nf3 {[%clk 0:02:59]} 5...
Nc6 {[%clk 0:02:58.3]} 6. Bc4 {[%clk 0:02:58.5]} 6... Nb6 {[%clk 0:02:58]} 7.
Bb3 {[%clk 0:02:58.5]} 7... d5 {[%clk 0:02:58]} 8. exd6 {[%clk 0:02:58.5]} 8...
Qxd6 {[%clk 0:02:56]} 9. O-O {[%clk 0:02:58.1]} 9... Be6 {[%clk 0:02:55.5]} 10.
Na3 {[%clk 0:02:51.2]} 10... Bxb3 {[%clk 0:02:54.1]} 11. Qxb3 {[%clk 0:02:49.5]}
11... e6 {[%clk 0:02:49.5]} 12. Nb5 {[%clk 0:02:48.6]} 12... Qd7 {[%clk
0:02:49.2]} 13. Nbxd4 {[%clk 0:02:40]} 13... Nxd4 {[%clk 0:02:47.9]} 14. Nxd4
{[%clk 0:02:39.1]} 14... Be7 {[%clk 0:02:42.8]} 15. Rd1 {[%clk 0:02:37.1]} 15...
O-O {[%clk 0:02:40.4]} 16. Nf5 {[%clk 0:02:34.5]} 16... Qe8 {[%clk 0:02:23.3]}
17. Nxe7+ {[%clk 0:02:27.4]} 17... Qxe7 {[%clk 0:02:24.2]} 18. Be3 {[%clk
0:02:19.9]} 18... Nd5 {[%clk 0:02:23.2]} 19. Bd4 {[%clk 0:02:19.3]} 19... Rfd8
{[%clk 0:02:10.9]} 20. c4 {[%clk 0:02:17.2]} 20... Nf4 {[%clk 0:02:00.8]} 21.
Qf3 {[%clk 0:02:15.7]} 21... e5 {[%clk 0:01:51.2]} 22. Bc3 {[%clk 0:02:07.4]}
22... f6 {[%clk 0:01:46.5]} 23. Rxd8+ {[%clk 0:02:00.9]} 23... Rxd8 {[%clk
0:01:45.5]} 24. Rd1 {[%clk 0:02:00.5]} 24... b6 {[%clk 0:01:38]} 25. g3 {[%clk
0:01:54.1]} 25... Nh3+ {[%clk 0:01:34.6]} 26. Kg2 {[%clk 0:01:50.1]} 26... Ng5
{[%clk 0:01:29.8]} 27. Rxd8+ {[%clk 0:01:47.9]} 27... Qxd8 {[%clk 0:01:30.7]}
28. Qb7 {[%clk 0:01:47.4]} 28... a5 {[%clk 0:01:16.7]} 29. h4 {[%clk 0:01:40.6]}
29... Ne6 {[%clk 0:01:13.1]} 30. Qc6 {[%clk 0:01:11.1]} 30... Kf7 {[%clk
0:01:10.2]} 31. a3 {[%clk 0:01:04.6]} 31... Qc7 {[%clk 0:00:44.3]} 32. Qd5
{[%clk 0:01:00.2]} 32... Qd8 {[%clk 0:00:37.8]} 33. Qc6 {[%clk 0:00:57.4]} 33...
Qc7 {[%clk 0:00:37.6]} 34. Qd5 {[%clk 0:00:57]} 34... Qd8 {[%clk 0:00:36]} 35.
Qc6 {[%clk 0:00:56.8]} 1/2-1/2